fUST/lending_fUST_20250731
["ID","MTS","AMOUNT","RATE_DAILY","PERIOD"]
[376338312,1753939856344,-500.0,0.00021973,2]
[376338313,1753939856353,-634.72855891,0.00021973,2]
[376338314,1753939856363,-386.70674065,0.00021973,2]
[376338315,1753939856372,-500.0,0.00021973,2]
[376338316,1753939856382,-151.0,0.00021973,7]
[376338317,1753939856391,-151.0,0.00021973,7]
[376338318,1753939856401,-200.0,0.00021974,15]
[376338319,1753939856411,-200.0,0.00021974,15]
[376338320,1753939856421,-200.0,0.00021974,15]
[376338321,1753939856430,-200.0,0.00021974,15]
[376338322,1753939856440,-200.0,0.00021974,15]
[376338323,1753939856450,-200.0,0.00021974,15]
[376338324,1753939856459,-200.0,0.00021974,15]
[376338325,1753939856469,-200.0,0.00021974,15]
[376338326,1753939856479,-200.0,0.00021974,15]
[376338327,1753939856489,-200.0,0.00021974,15]
[376338328,1753939856502,-200.0,0.00021974,15]
[376338330,1753939856511,-200.0,0.00021974,15]
[376338332,1753939856521,-200.0,0.00021974,15]
[376338334,1753939856530,-200.0,0.00021974,15]
[376338336,1753939856539,-151.0,0.00021978,7]
[376338338,1753939856548,-151.0,0.00021978,7]
[376338340,1753939856557,-151.0,0.00021978,7]
[376338342,1753939856566,-282.719766,0.00021978,7]
[376338344,1753939856576,-151.0,0.0002198,7]
[376338346,1753939856585,-151.0,0.0002198,7]
[376338348,1753939856595,-151.0,0.0002198,7]
[376338350,1753939856605,-251.871697,0.0002198,7]
[376338351,1753939856614,-222.459262,0.0002198,7]
[376338354,1753939856624,-151.0,0.0002198,7]
[376338355,1753939856633,-196.654145,0.0002198,7]
[376338358,1753939856642,-196.654145,0.0002198,7]
[376338359,1753939856651,-268335.57120697,0.0002198,2]
[376338362,1753939856664,-278.350948,0.0002198,7]
[376338363,1753939856673,-256.107375,0.0002198,7]
[376338365,1753939856682,-278.350948,0.0002198,7]
[376338367,1753939856692,-256.107375,0.0002198,7]
[376338369,1753939856703,-231.58337152,0.00021982,2]
[376338371,1753939856713,-168.0,0.00021994,2]
[376338374,1753939856722,-392.49871412,0.00021994,2]
[376338376,1753939856731,-53942.99191943,0.00022,2]
[376338387,1753939856829,-275.46424106,0.00022,2]
[376338418,1753939857378,-507.20800005,0.00022,2]
[376338419,1753939857390,-39648.19995131,0.00022,2]
[376338420,1753939857403,-502.0,0.00022,2]
[376338421,1753939857427,-221.27998799,0.00019722,2]
[376338422,1753939857436,-333.92001201,0.00022,2]
[376339013,1753940132219,207.9940437,0.00018646,2]
[376339014,1753940212042,231.203631,0.00018646,2]
[376339015,1753940381231,465.0754103,0.00018634,2]
[376339016,1753940434247,656.11049755,0.0001862,2]
[376339017,1753940434276,20000.0,0.0001862,2]
[376339018,1753940434304,4243.88950245,0.0001862,2]
[376339019,1753940437994,10000.0,0.0001862,2]
[376339020,1753940468657,-177.779812,0.00019178,2]
[376339030,1753940568938,5000.0,0.00019079,2]
[376339042,1753940921357,231.26699,0.00013699,2]
[376339083,1753941032361,-228.70021852,0.00019505,2]
[376339084,1753941032370,-212.14426201,0.0001951,2]
[376339085,1753941032380,-459.31267477,0.0001961,2]
[376339086,1753941032395,-69.06824806,0.0001961,2]
[376339087,1753941032405,-335.0,0.00019616,2]
[376339088,1753941032413,-6.38801002,0.00019617,2]
[376339100,1753941032661,-293.61198998,0.00019617,2]
[376339102,1753941032670,-300.0,0.00019617,2]
[376339104,1753941032679,-300.0,0.00019617,2]
[376339106,1753941032688,-300.0,0.00019617,2]
[376339108,1753941032698,-300.0,0.00019617,2]
[376339110,1753941032707,-460.0,0.00019618,2]
[376339112,1753941032718,-460.0,0.00019618,2]
[376339114,1753941032740,-651.38,0.00019618,2]
[376339116,1753941032752,-460.0,0.00019618,2]
[376339118,1753941032762,-14672.38201983,0.00019619,2]
[376339120,1753941032770,-460.0,0.00019619,2]
[376339122,1753941032779,-461.8180908,0.00019619,2]
[376339124,1753941032789,-461.2128075,0.00019619,2]
[376339126,1753941032798,-460.0,0.00019619,2]
[376339128,1753941032807,-460.0,0.00019619,2]
[376339130,1753941032817,-460.0,0.00019619,2]
[376339132,1753941032825,-460.0,0.00019619,2]
[376339134,1753941032835,-460.0,0.00019619,2]
[376339136,1753941032844,-460.0,0.00019619,2]
[376339137,1753941032853,-1591.21,0.00019619,2]
[376339139,1753941032863,-460.0,0.00019619,2]
[376339141,1753941032872,-460.0,0.00019619,2]
[376339143,1753941032881,-460.0,0.00019619,2]
[376339145,1753941032891,-460.0,0.00019619,2]
[376339147,1753941032900,-460.0,0.00019619,2]
[376339149,1753941032910,-1504.45,0.00019619,2]
[376339151,1753941032919,-460.0,0.00019619,2]
[376339153,1753941032928,-460.0,0.00019619,2]
[376339155,1753941032938,-460.0,0.00019619,2]
[376339156,1753941032947,-460.0,0.00019619,2]
[376339157,1753941032957,-460.0,0.00019619,2]
[376339158,1753941032966,-460.0,0.00019619,2]
[376339160,1753941032975,-840.9,0.00019619,2]
[376339162,1753941032986,-728.04,0.00019619,2]
[376339164,1753941032995,-460.0,0.00019619,2]
[376339166,1753941033004,-460.0,0.00019619,2]
[376339168,1753941033014,-460.0,0.00019619,2]
[376339170,1753941033023,-460.0,0.00019619,2]
[376339172,1753941033032,-460.0,0.00019619,2]
[376339174,1753941033042,-460.0,0.00019619,2]
[376339176,1753941033052,-544.46,0.00019619,2]
[376339178,1753941033062,-460.0,0.00019619,2]
[376339180,1753941033072,-460.0,0.00019619,2]
[376339182,1753941033082,-460.0,0.00019619,2]
[376339184,1753941033092,-502.4549979,0.00019619,2]
[376339186,1753941033101,-460.0,0.00019619,2]
[376339188,1753941033110,-460.0,0.00019619,2]
[376339190,1753941033120,-413.333874,0.00019619,2]
[376339192,1753941033132,-460.0,0.00019619,2]
[376339194,1753941033142,-460.0,0.00019619,2]
[376339196,1753941033152,-460.0,0.00019619,2]
[376339198,1753941033162,-474.93502964,0.00019619,2]
[376339200,1753941033172,-460.0,0.00019619,2]
[376339202,1753941033184,-460.0,0.00019619,2]
[376339204,1753941033193,-269.40102135,0.00019619,2]
[376339206,1753941033206,-357.34897865,0.00019619,2]
[376339208,1753941033216,-460.0,0.00019619,2]
[376339210,1753941033225,-460.0,0.00019619,2]
[376339212,1753941033235,-460.0,0.00019619,2]
[376339214,1753941033244,-460.0,0.00019619,2]
[376339216,1753941033253,-460.0,0.00019619,2]
[376339218,1753941033263,-460.0,0.00019619,2]
[376339220,1753941033273,-460.0,0.00019619,2]
[376339222,1753941033284,-460.0,0.00019619,2]
[376339224,1753941033294,-460.0,0.00019619,2]
[376339226,1753941033304,-460.0,0.0001962,2]
[376339228,1753941033315,-460.0,0.0001962,2]
[376339230,1753941033325,-460.0,0.0001962,2]
[376339232,1753941033335,-460.0,0.0001962,2]
[376339234,1753941033345,-426.00721584,0.0001962,2]
[376339236,1753941033354,-460.0,0.0001962,2]
[376339239,1753941033364,-450.14452209,0.0001962,2]
[376339241,1753941033374,-460.0,0.0001962,2]
[376339243,1753941033384,-460.0,0.0001962,2]
[376339244,1753941033394,-460.0,0.0001962,2]
[376339246,1753941033403,-460.0,0.0001962,2]
[376339249,1753941033414,-460.0,0.0001962,2]
[376339252,1753941033435,-395.46936601,0.0001962,2]
[376339254,1753941033446,-460.0,0.0001962,2]
[376339255,1753941033456,-572.94459415,0.0001962,2]
[376339257,1753941033466,-460.0,0.0001962,2]
[376339259,1753941033476,-418.01755275,0.0001962,2]
[376339261,1753941033487,-460.0,0.0001962,2]
[376339263,1753941033497,-288.41937706,0.0001962,2]
[376339265,1753941033510,-171.58062294,0.0001962,2]
[376339267,1753941033521,-460.0,0.0001962,2]
[376339269,1753941033531,-460.0,0.0001962,2]
[376339271,1753941033541,-460.0,0.0001962,2]
[376339273,1753941033551,-460.0,0.0001962,2]
[376339275,1753941033561,-460.0,0.0001962,2]
[376339277,1753941033571,-460.0,0.0001962,2]
[376339279,1753941033582,-276.06636702,0.0001962,2]
[376339281,1753941033592,-460.0,0.0001962,2]
[376339283,1753941033602,-444.33250016,0.0001962,2]
[376339285,1753941033611,-363.7436372,0.0001962,2]
[376339287,1753941033621,-460.0,0.0001962,2]
[376339289,1753941033631,-460.0,0.0001962,2]
[376339291,1753941033641,-460.0,0.0001962,2]
[376339293,1753941033651,-407.70428286,0.0001962,2]
[376339295,1753941033661,-460.0,0.0001962,2]
[376339297,1753941033670,-460.0,0.0001962,2]
[376339300,1753941033681,-430.23422471,0.0001962,2]
[376339302,1753941033691,-536.1791888,0.0001962,2]
[376339304,1753941033701,-460.0,0.0001962,2]
[376339305,1753941033711,-460.0,0.0001962,2]
[376339308,1753941033721,-460.0,0.0001962,2]
[376339310,1753941033731,-460.0,0.0001962,2]
[376339312,1753941033742,-456.69759081,0.0001962,2]
[376339314,1753941033752,-460.0,0.0001962,2]
[376339316,1753941033762,-460.0,0.0001962,2]
[376339317,1753941033771,-460.0,0.0001962,2]
[376339320,1753941033781,-460.0,0.0001962,2]
[376339322,1753941033791,-460.0,0.0001962,2]
[376339324,1753941033801,-460.0,0.0001962,2]
[376339325,1753941033811,-460.0,0.0001962,2]
[376339327,1753941033821,-460.0,0.0001962,2]
[376339329,1753941033831,-460.0,0.0001962,2]
[376339331,1753941033841,-460.0,0.0001962,2]
[376339333,1753941033851,-460.0,0.0001962,2]
[376339335,1753941033861,-460.0,0.0001962,2]
[376339337,1753941033871,-460.0,0.0001962,2]
[376339339,1753941033881,-460.0,0.0001962,2]
[376339342,1753941033891,-460.0,0.0001962,2]
[376339343,1753941033901,-460.0,0.0001962,2]
[376339346,1753941033911,-460.0,0.0001962,2]
[376339348,1753941033921,-460.0,0.0001962,2]
[376339350,1753941033931,-460.0,0.0001962,2]
[376339352,1753941033941,-460.0,0.0001962,2]
[376339354,1753941033951,-460.0,0.0001962,2]
[376339356,1753941033961,-460.0,0.0001962,2]
[376339358,1753941033973,-460.0,0.0001962,2]
[376339360,1753941033983,-460.0,0.0001962,2]
[376339362,1753941033993,-460.0,0.0001962,2]
[376339364,1753941034003,-561.06975132,0.0001962,2]
[376339366,1753941034014,-460.0,0.0001962,2]
[376339368,1753941034023,-460.0,0.0001962,2]
[376339370,1753941034033,-460.0,0.0001962,2]
[376339372,1753941034043,-460.0,0.0001962,2]
[376339374,1753941034053,-460.0,0.0001962,2]
[376339376,1753941034065,-460.0,0.00019621,2]
[376339378,1753941034075,-261.191421,0.00019621,2]
[376339380,1753941034085,-460.0,0.00019621,2]
[376339382,1753941034095,-460.0,0.00019621,2]
[376339384,1753941034104,-462.15571699,0.00019621,2]
[376339386,1753941034114,-460.0,0.00019621,2]
[376339388,1753941034124,-460.0,0.00019621,2]
[376339390,1753941034137,-442.8062127,0.00019621,2]
[376339392,1753941034146,-460.0,0.00019621,2]
[376339394,1753941034156,-1791.34,0.00019621,2]
[376339396,1753941034167,-460.0,0.00019621,2]
[376339398,1753941034177,-738.24,0.00019621,2]
[376339400,1753941034186,-527.02,0.00019621,2]
[376339402,1753941034195,-546.47,0.00019621,2]
[376339405,1753941034205,-360.0067741,0.00019621,2]
[376339407,1753941034215,-766.01,0.00019621,2]
[376339409,1753941034225,-460.0,0.00019621,2]
[376339411,1753941034235,-720.14,0.00019621,2]
[376339413,1753941034245,-460.0,0.00019621,2]
[376339415,1753941034255,-50.38486891,0.00019621,2]
[376339417,1753941034268,-141.72782286,0.00019621,2]
[376339419,1753941034277,-830.2,0.00019621,2]
[376339421,1753941034287,-500.0,0.00019621,2]
[376339423,1753941034299,-27.84500603,0.00019622,2]
[376339427,1753941034327,-922.15248129,0.00019622,2]
[376339455,1753941034586,-586.9874673,0.00019622,2]
[376339853,1753941039121,-564.16,0.00019618,2]
[376339856,1753941039135,-460.0,0.00019621,2]
[376339858,1753941039144,-18.34000061,0.00019622,2]
[376339983,1753941040295,-1859.41466384,0.00019521,2]
[376340124,1753941043233,-1291.38533616,0.00019521,2]
[376340127,1753941043243,-1532.91,0.00019618,2]
[376340130,1753941043252,-460.0,0.00019619,2]
[376340132,1753941043262,-460.0,0.0001962,2]
[376340135,1753941043271,-1398.81794972,0.00019622,2]
[376340147,1753941043345,-5408.59263889,0.00019622,2]
[376340150,1753941043356,-5105.27622,0.00019622,2]
[376340152,1753941043368,-963.89258321,0.00019622,2]
[376340406,1753941046166,-460.0,0.00019619,2]
[376340409,1753941046178,-460.0,0.0001962,2]
[376340411,1753941046187,-16598.02939866,0.00019622,2]
[376340421,1753941046284,-460.0,0.00019619,2]
[376340423,1753941046293,-2321.46710611,0.00019622,2]
[376340425,1753941046304,-620.0,0.00019622,2]
[376341811,1753941249831,231.203631,0.00018619,2]
[376341812,1753941455129,-177.779812,0.00019178,2]
[376341813,1753941492546,293.63987655,0.00018519,2]
[376341814,1753941492572,9706.36012345,0.00018519,2]
[376341816,1753941510207,5000.0,0.00019079,2]
[376341817,1753941526169,5000.0,0.00019079,2]
[376341818,1753941539429,293.63987655,0.00018519,2]
[376341819,1753941539459,20000.0,0.00018519,2]
[376341820,1753941539488,4606.36012345,0.00018519,2]
[376341821,1753941542213,159.31301254,0.00019223,2]
[376341822,1753941547127,-225.12736346,0.00019223,2]
[376341823,1753941553007,-200.0,0.00019223,2]
[376341824,1753941556083,-260.0,0.00019223,2]
[376341825,1753941558486,-170.67235025,0.00019223,2]
[376341826,1753941560433,-596.06235025,0.00019223,2]
[376341827,1753941566825,-529.32764975,0.00019223,2]
[376341828,1753941571505,-340.0,0.00019223,2]
[376341829,1753941731988,5000.0,0.00019001,2]
[376341830,1753941748011,2519.49727375,0.00019001,2]
[376341834,1753941912196,219.70364,0.00013699,2]
[376341836,1753942005168,-212.14426201,0.00019321,2]
[376341837,1753942005192,-232.82993018,0.00019417,2]
[376341838,1753942005216,-300.0,0.0001942,2]
[376341839,1753942005239,-105.02580781,0.00019421,2]
[376341878,1753942232598,-203.72618889,0.00019322,2]
[376341879,1753942232607,-195.0,0.0001942,2]
[376341880,1753942232617,-300.0,0.0001942,2]
[376341881,1753942232626,-300.0,0.0001942,2]
[376341882,1753942232635,-248.58713062,0.0001942,2]
[376341883,1753942232647,-51.41286938,0.0001942,2]
[376341884,1753942232657,-300.0,0.0001942,2]
[376341885,1753942232667,-1200.0,0.0001942,2]
[376341886,1753942232677,-50000.0,0.00019422,2]
[376341887,1753942232687,-325.0,0.00019423,2]
[376341888,1753942232696,-325.0,0.00019423,2]
[376341889,1753942232706,-325.0,0.00019423,2]
[376341890,1753942232715,-325.0,0.00019423,2]
[376341891,1753942232724,-192.11269176,0.00019473,2]
[376341892,1753942232733,-1109.53487551,0.00019473,2]
[376341893,1753942232743,-1621.07,0.00019509,3]
[376341894,1753942232751,-999.03,0.00019509,3]
[376341895,1753942232760,-499.52,0.00019509,3]
[376341896,1753942232770,-249.76,0.00019509,3]
[376341897,1753942232779,-749.28,0.00019509,3]
[376341898,1753942232789,-460.0,0.00019517,2]
[376341899,1753942232799,-460.0,0.00019517,2]
[376341900,1753942232808,-460.0,0.00019517,2]
[376341901,1753942232817,-1462.45,0.00019517,2]
[376341902,1753942232826,-1531.38,0.00019517,2]
[376341903,1753942232838,-300.19844729,0.00019517,2]
[376341904,1753942232847,-460.0,0.00019517,2]
[376341905,1753942232857,-460.0,0.00019518,2]
[376341906,1753942232866,-460.0,0.00019518,2]
[376341907,1753942232875,-255.98842246,0.00019518,2]
[376341908,1753942232887,-460.0,0.00019518,2]
[376341909,1753942232897,-460.0,0.00019518,2]
[376341910,1753942232906,-460.0,0.00019518,2]
[376341911,1753942232915,-460.0,0.00019518,2]
[376341912,1753942232926,-460.0,0.00019518,2]
[376341913,1753942232935,-460.0,0.00019518,2]
[376341914,1753942232944,-460.0,0.00019518,2]
[376341915,1753942232953,-460.0,0.00019518,2]
[376341916,1753942232964,-460.0,0.00019518,2]
[376341917,1753942232973,-460.0,0.00019518,2]
[376341918,1753942232982,-460.0,0.00019518,2]
[376341919,1753942232991,-460.0,0.00019518,2]
[376341920,1753942233000,-460.0,0.00019518,2]
[376341921,1753942233010,-460.0,0.00019518,2]
[376341922,1753942233019,-268.02119063,0.00019518,2]
[376341923,1753942233029,-460.0,0.00019518,2]
[376341924,1753942233038,-460.0,0.00019518,2]
[376341925,1753942233047,-460.0,0.00019518,2]
[376341926,1753942233057,-460.0,0.00019518,2]
[376341927,1753942233067,-460.0,0.00019518,2]
[376341928,1753942233077,-462.58601337,0.00019518,2]
[376341929,1753942233088,-460.0,0.00019518,2]
[376341930,1753942233098,-460.0,0.00019518,2]
[376341931,1753942233107,-460.0,0.00019518,2]
[376341932,1753942233117,-460.0,0.00019518,2]
[376341933,1753942233126,-460.0,0.00019518,2]
[376341934,1753942233136,-460.0,0.00019518,2]
[376341935,1753942233146,-805.86,0.00019518,2]
[376341936,1753942233155,-697.71,0.00019518,2]
[376341937,1753942233164,-460.0,0.00019518,2]
[376341938,1753942233174,-470.12811614,0.00019518,2]
[376341939,1753942233183,-460.0,0.00019518,2]
[376341940,1753942233193,-460.0,0.00019518,2]
[376341941,1753942233202,-460.0,0.00019518,2]
[376341942,1753942233211,-549.17,0.00019518,2]
[376341943,1753942233221,-460.0,0.00019518,2]
[376341944,1753942233230,-460.0,0.00019518,2]
[376341945,1753942233240,-460.0,0.00019518,2]
[376341946,1753942233249,-460.0,0.00019518,2]
[376341947,1753942233258,-460.0,0.00019518,2]
[376341948,1753942233267,-460.0,0.00019518,2]
[376341949,1753942233277,-465.76066162,0.00019518,2]
[376341950,1753942233286,-460.0,0.00019518,2]
[376341951,1753942233295,-460.0,0.00019518,2]
[376341952,1753942233304,-500.0,0.00019518,2]
[376341953,1753942233314,-460.0,0.00019518,2]
[376341954,1753942233323,-282.24,0.00019518,2]
[376341955,1753942233332,-460.0,0.00019518,2]
[376341956,1753942233343,-600.64,0.00019518,2]
[376341957,1753942233352,-460.0,0.00019518,2]
[376341958,1753942233361,-460.0,0.00019518,2]
[376341959,1753942233371,-460.0,0.00019518,2]
[376341960,1753942233380,-460.0,0.00019518,2]
[376341961,1753942233389,-460.0,0.00019518,2]
[376341962,1753942233399,-460.0,0.00019518,2]
[376341963,1753942233408,-460.0,0.00019518,2]
[376341964,1753942233418,-460.0,0.00019518,2]
[376341965,1753942233427,-520.53322625,0.00019518,2]
[376341966,1753942233437,-460.0,0.00019518,2]
[376341967,1753942233446,-460.0,0.00019518,2]
[376341968,1753942233456,-460.0,0.00019518,2]
[376341969,1753942233466,-500.0,0.00019519,2]
[376341970,1753942233475,-520.02475982,0.00019519,2]
[376341971,1753942233484,-500.0,0.00019519,2]
[376341972,1753942233494,-500.0,0.00019519,2]
[376341973,1753942233503,-501.71692855,0.00019519,2]
[376341974,1753942233513,-500.0,0.00019519,2]
[376341975,1753942233523,-500.0,0.00019519,2]
[376341976,1753942233532,-500.0,0.00019519,2]
[376341977,1753942233541,-500.0,0.00019519,2]
[376341978,1753942233551,-500.0,0.00019519,2]
[376341979,1753942233561,-500.0,0.00019519,2]
[376341980,1753942233571,-500.0,0.00019519,2]
[376341981,1753942233581,-500.0,0.00019519,2]
[376341982,1753942233591,-500.0,0.00019519,2]
[376341983,1753942233601,-500.0,0.00019519,2]
[376341984,1753942233611,-500.0,0.00019519,2]
[376341985,1753942233620,-500.0,0.00019519,2]
[376341986,1753942233631,-500.0,0.00019519,2]
[376341987,1753942233641,-500.0,0.00019519,2]
[376341988,1753942233650,-500.0,0.00019519,2]
[376341989,1753942233660,-500.0,0.00019519,2]
[376341990,1753942233670,-192.7864619,0.00019519,2]
[376341991,1753942233680,-432.33057354,0.00019519,2]
[376341992,1753942233690,-160.10757063,0.00019519,2]
[376341993,1753942233700,-500.0,0.00019519,2]
[376341994,1753942233710,-500.0,0.00019519,2]
[376341995,1753942233719,-487.29098073,0.00019519,2]
[376341996,1753942233729,-500.0,0.00019519,2]
[376341997,1753942233738,-353.2080381,0.00019519,2]
[376341998,1753942233748,-500.0,0.00019519,2]
[376341999,1753942233757,-500.0,0.00019519,2]
[376342000,1753942233767,-500.0,0.00019519,2]
[376342001,1753942233776,-500.0,0.00019519,2]
[376342002,1753942233786,-500.0,0.00019519,2]
[376342003,1753942233796,-500.0,0.00019519,2]
[376342004,1753942233806,-500.0,0.00019519,2]
[376342005,1753942233816,-500.0,0.00019519,2]
[376342006,1753942233827,-500.0,0.00019519,2]
[376342007,1753942233838,-500.0,0.00019519,2]
[376342008,1753942233848,-500.0,0.00019519,2]
[376342009,1753942233858,-407.7891356,0.00019519,2]
[376342010,1753942233868,-500.0,0.00019519,2]
[376342011,1753942233883,-500.0,0.00019519,2]
[376342012,1753942233893,-226.92218511,0.00019519,2]
[376342013,1753942233903,-500.0,0.00019519,2]
[376342014,1753942233914,-500.0,0.00019519,2]
[376342015,1753942233924,-500.0,0.00019519,2]
[376342016,1753942233934,-500.0,0.00019519,2]
[376342017,1753942233944,-500.0,0.00019519,2]
[376342018,1753942233955,-500.0,0.00019519,2]
[376342019,1753942233964,-500.0,0.00019519,2]
[376342020,1753942233974,-500.0,0.00019519,2]
[376342021,1753942233984,-500.0,0.00019519,2]
[376342022,1753942233993,-500.0,0.00019519,2]
[376342023,1753942234003,-500.0,0.00019519,2]
[376342024,1753942234012,-500.0,0.00019519,2]
[376342025,1753942234022,-500.0,0.00019519,2]
[376342026,1753942234031,-623.58444527,0.00019519,2]
[376342027,1753942234041,-500.0,0.00019519,2]
[376342028,1753942234050,-500.0,0.00019519,2]
[376342029,1753942234060,-500.0,0.00019519,2]
[376342030,1753942234070,-500.0,0.00019519,2]
[376342031,1753942234080,-500.0,0.00019519,2]
[376342032,1753942234090,-500.0,0.00019519,2]
[376342033,1753942234099,-500.0,0.00019519,2]
[376342034,1753942234109,-500.0,0.00019519,2]
[376342035,1753942234120,-500.0,0.00019519,2]
[376342036,1753942234130,-500.0,0.00019519,2]
[376342037,1753942234139,-500.0,0.00019519,2]
[376342038,1753942234149,-500.0,0.00019519,2]
[376342039,1753942234159,-500.0,0.00019519,2]
[376342040,1753942234168,-500.0,0.00019519,2]
[376342041,1753942234179,-500.0,0.00019519,2]
[376342042,1753942234189,-500.0,0.00019519,2]
[376342043,1753942234199,-500.0,0.00019519,2]
[376342044,1753942234208,-500.0,0.00019519,2]
[376342045,1753942234218,-500.0,0.00019519,2]
[376342046,1753942234227,-500.0,0.00019519,2]
[376342047,1753942234236,-500.0,0.00019519,2]
[376342048,1753942234246,-500.0,0.00019519,2]
[376342049,1753942234255,-500.0,0.00019519,2]
[376342050,1753942234265,-500.0,0.00019519,2]
[376342051,1753942234274,-500.0,0.00019519,2]
[376342052,1753942234284,-500.0,0.00019519,2]
[376342053,1753942234293,-500.0,0.00019519,2]
[376342054,1753942234303,-500.0,0.00019519,2]
[376342055,1753942234312,-500.0,0.00019519,2]
[376342056,1753942234322,-500.0,0.00019519,2]
[376342057,1753942234331,-500.0,0.00019519,2]
[376342058,1753942234341,-500.0,0.00019519,2]
[376342059,1753942234350,-500.0,0.00019519,2]
[376342060,1753942234359,-500.0,0.00019519,2]
[376342061,1753942234369,-500.0,0.00019519,2]
[376342062,1753942234378,-600.0,0.00019519,2]
[376342063,1753942234387,-499.99999999,0.00019519,2]
[376342064,1753942234396,-374.70527147,0.00019519,2]
[376342065,1753942234406,-759.20094734,0.00019519,2]
[376342066,1753942234415,-759.20094734,0.00019519,2]
[376342067,1753942234425,-759.20094734,0.00019519,2]
[376342068,1753942234434,-759.20094734,0.00019519,2]
[376342069,1753942234443,-759.20094734,0.00019519,2]
[376342070,1753942234454,-759.20094734,0.00019519,2]
[376342071,1753942234464,-759.20094734,0.00019519,2]
[376342072,1753942234474,-759.20094734,0.00019519,2]
[376342073,1753942234483,-759.20094734,0.00019519,2]
[376342074,1753942234493,-759.20094734,0.00019519,2]
[376342075,1753942234502,-759.20094734,0.00019519,2]
[376342076,1753942234512,-759.20094734,0.00019519,2]
[376342077,1753942234522,-764.62381124,0.00019519,2]
[376342078,1753942234531,-764.62381124,0.00019519,2]
[376342079,1753942234664,-764.62381124,0.00019519,2]
[376342080,1753942234675,-764.62381124,0.00019519,2]
[376342081,1753942234684,-764.62381124,0.00019519,2]
[376342082,1753942234694,-764.62381124,0.00019519,2]
[376342083,1753942234703,-856.1469644,0.00019519,2]
[376342084,1753942234712,-856.1469644,0.00019519,2]
[376342085,1753942234722,-856.1469644,0.00019519,2]
[376342086,1753942234731,-856.1469644,0.00019519,2]
[376342087,1753942234740,-152.7480391,0.00019519,2]
[376342088,1753942234750,-500.0,0.00019519,2]
[376342089,1753942234760,-500.0,0.00019519,2]
[376342090,1753942234770,-152.0259537,0.00019519,2]
[376342091,1753942234779,-151.0,0.00019519,2]
[376342092,1753942234788,-153.02038073,0.00019519,2]
[376342093,1753942234798,-153.79297055,0.00019519,2]
[376342094,1753942234808,-1000.0,0.0001952,2]
[376342095,1753942234818,-164384.05991236,0.0001952,2]
[376342096,1753942234832,-298.25819252,0.0001952,2]
[376342097,1753942234845,-47852.41571109,0.0001952,2]
[376342098,1753942234886,-410.48249593,0.0001952,2]
[376342357,1753942240666,-0.0211794,0.00019518,2]
[376342694,1753942500002,10000.0,0.00018489,2]
[376342695,1753942634898,5746.3822912,0.00018455,2]
[376342696,1753942634925,19153.6177088,0.00018455,2]
[376342697,1753942700119,20846.3822912,0.00019,2]
[376342698,1753942700142,40000.0,0.00019,2]
[376342699,1753942700166,40000.0,0.00019,2]
[376342700,1753942700189,40000.0,0.00019,2]
[376342701,1753942701632,-295.18551523,0.00019,2]